[Event "Titled Tuesday Blitz March 01 Early 2022"]
[White "Seo, Jung Min"]
[Black "Ponkratov, Pavel"]
[WhiteFideId "1734687"]
[BlackFideId "4157800"]
[WhiteElo "2401"]
[BlackElo "2487"]
[Result "0-1"]
[Round "08"]
[TimeControl "180+1"]
[Date "2022.03.01"]
[WhiteClock "0:01:21"]
[BlackClock "0:01:09"]

1. e4 {[%clk 0:03:00]}  e6 {[%clk 0:02:56]} 2. d4 {[%clk 0:03:00]}  d5 {[%clk 0:02:56]} 3. exd5 {[%clk 0:02:59]}  exd5 {[%clk 0:02:57]} 4. Bd3 {[%clk 0:02:59]}  Nc6 {[%clk 0:02:56]} 5. c3 {[%clk 0:02:57]}  Bd6 {[%clk 0:02:57]} 6. Qf3 {[%clk 0:02:53]}  Nf6 {[%clk 0:02:51]} 7. Bg5 {[%clk 0:02:46]}  Be7 {[%clk 0:02:50]} 8. Ne2 {[%clk 0:02:45]}  h6 {[%clk 0:02:50]} 9. Bf4 {[%clk 0:02:40]}  O-O {[%clk 0:02:32]} 10. O-O {[%clk 0:02:38]}  Bg4 {[%clk 0:02:23]} 11. Qg3 {[%clk 0:02:37]}  Qd7 {[%clk 0:02:24]} 12. h3 {[%clk 0:02:36]}  Bxe2 {[%clk 0:02:19]} 13. Bxe2 {[%clk 0:02:35]}  Ne4 {[%clk 0:02:20]} 14. Qd3 {[%clk 0:02:34]}  Bd6 {[%clk 0:02:15]} 15. Bxd6 {[%clk 0:02:32]}  Qxd6 {[%clk 0:02:16]} 16. Nd2 {[%clk 0:02:31]}  Rae8 {[%clk 0:02:16]} 17. Rae1 {[%clk 0:02:21]}  f5 {[%clk 0:02:15]} 18. Bd1 {[%clk 0:02:18]}  Kh8 {[%clk 0:02:14]} 19. Ba4 {[%clk 0:02:16]}  a6 {[%clk 0:02:02]} 20. Bxc6 {[%clk 0:02:13]}  Qxc6 {[%clk 0:02:02]} 21. Nf3 {[%clk 0:02:12]}  Qb5 {[%clk 0:02:01]} 22. Qxb5 {[%clk 0:02:06]}  axb5 {[%clk 0:02:01]} 23. Ne5 {[%clk 0:02:05]}  Kh7 {[%clk 0:02:00]} 24. a3 {[%clk 0:02:00]}  Nd2 {[%clk 0:02:00]} 25. Nd7 {[%clk 0:01:55]}  Rh8 {[%clk 0:01:49]} 26. Rxe8 {[%clk 0:01:52]}  Rxe8 {[%clk 0:01:49]} 27. Rd1 {[%clk 0:01:52]}  Nc4 {[%clk 0:01:49]} 28. Kf1 {[%clk 0:01:41]}  c6 {[%clk 0:01:36]} 29. Nc5 {[%clk 0:01:37]}  Nxb2 {[%clk 0:01:34]} 30. Rb1 {[%clk 0:01:36]}  Nc4 {[%clk 0:01:33]} 31. Ra1 {[%clk 0:01:34]}  b6 {[%clk 0:01:31]} 32. Nd3 {[%clk 0:01:34]}  Nd2+ {[%clk 0:01:25]} 33. Kg1 {[%clk 0:01:32]}  Ne4 {[%clk 0:01:25]} 34. Nb4 {[%clk 0:01:31]}  Rc8 {[%clk 0:01:22]} 35. a4 {[%clk 0:01:31]}  Nxc3 {[%clk 0:01:20]} 36. axb5 {[%clk 0:01:30]}  Nxb5 {[%clk 0:01:20]} 37. Ra6 {[%clk 0:01:28]}  Nxd4 {[%clk 0:01:20]} 38. Rxb6 {[%clk 0:01:29]}  Kg8 {[%clk 0:01:16]} 39. Kf1 {[%clk 0:01:27]}  Kf7 {[%clk 0:01:15]} 40. Ke1 {[%clk 0:01:27]}  Ke7 {[%clk 0:01:14]} 41. Kd2 {[%clk 0:01:27]}  Kd6 {[%clk 0:01:14]} 42. Kd3 {[%clk 0:01:28]}  Ne6 {[%clk 0:01:13]} 43. Na6 {[%clk 0:01:24]}  Nf4+ {[%clk 0:01:11]} 44. Kd4 {[%clk 0:01:24]}  Nxg2 {[%clk 0:01:11]} 45. Nc5 {[%clk 0:01:22]}  Nf4 {[%clk 0:01:10]} 46. Rb7 {[%clk 0:01:22]}  Ne2+ {[%clk 0:01:10]} 47. Ke3 {[%clk 0:01:21]}  Re8+ {[%clk 0:01:09]} 0-1


[Site "https://www.chess.com"]

[Event "Titled Tuesday Blitz March 01 Early 2022"]
[White "Shuvalov, Evgenij"]
[Black "Miszler, Levente"]
[WhiteFideId "4187237"]
[BlackFideId "763276"]
[WhiteElo "2119"]
[BlackElo "1966"]
[Result "1-0"]
[Round "08"]
[TimeControl "180+1"]
[Date "2022.03.01"]
[WhiteClock "0:01:23"]
[BlackClock "0:00:43"]

1. Nf3 {[%clk 0:03:00]}  Nc6 {[%clk 0:02:55]} 2. d4 {[%clk 0:03:00]}  d5 {[%clk 0:02:51]} 3. c4 {[%clk 0:03:00]}  e6 {[%clk 0:02:42]} 4. Nc3 {[%clk 0:02:58]}  Nf6 {[%clk 0:02:42]} 5. Bg5 {[%clk 0:02:57]}  Be7 {[%clk 0:02:39]} 6. e3 {[%clk 0:02:57]}  O-O {[%clk 0:02:36]} 7. Rc1 {[%clk 0:02:50]}  h6 {[%clk 0:02:31]} 8. Bh4 {[%clk 0:02:49]}  dxc4 {[%clk 0:02:29]} 9. Bxc4 {[%clk 0:02:48]}  Nd5 {[%clk 0:02:30]} 10. Bg3 {[%clk 0:02:42]}  Nxc3 {[%clk 0:02:15]} 11. bxc3 {[%clk 0:02:41]}  Bf6 {[%clk 0:02:15]} 12. e4 {[%clk 0:02:36]}  Re8 {[%clk 0:02:04]} 13. e5 {[%clk 0:02:35]}  Be7 {[%clk 0:02:05]} 14. O-O {[%clk 0:02:31]}  Na5 {[%clk 0:02:03]} 15. Bd3 {[%clk 0:02:31]}  b6 {[%clk 0:02:03]} 16. Bb1 {[%clk 0:02:19]}  Bb7 {[%clk 0:02:00]} 17. Qd3 {[%clk 0:02:17]}  g6 {[%clk 0:02:00]} 18. Nd2 {[%clk 0:02:12]}  c5 {[%clk 0:01:55]} 19. Ne4 {[%clk 0:02:09]}  Rc8 {[%clk 0:01:43]} 20. Nd6 {[%clk 0:02:02]}  Bxd6 {[%clk 0:01:40]} 21. exd6 {[%clk 0:02:03]}  Qd7 {[%clk 0:01:32]} 22. Rfd1 {[%clk 0:02:01]}  cxd4 {[%clk 0:01:21]} 23. Qxd4 {[%clk 0:01:57]}  Rc4 {[%clk 0:01:14]} 24. Qf6 {[%clk 0:01:53]}  Qd8 {[%clk 0:01:02]} 25. d7 {[%clk 0:01:47]}  Rf8 {[%clk 0:00:55]} 26. Be5 {[%clk 0:01:46]}  Qxf6 {[%clk 0:00:54]} 27. Bxf6 {[%clk 0:01:46]}  Nc6 {[%clk 0:00:53]} 28. d8=Q {[%clk 0:01:36]}  Nxd8 {[%clk 0:00:53]} 29. Rxd8 {[%clk 0:01:33]}  Rxd8 {[%clk 0:00:51]} 30. Bxd8 {[%clk 0:01:34]}  Kf8 {[%clk 0:00:46]} 31. Bf6 {[%clk 0:01:34]}  Ke8 {[%clk 0:00:46]} 32. Rd1 {[%clk 0:01:33]}  Rc8 {[%clk 0:00:45]} 33. Bc2 {[%clk 0:01:29]}  Bd5 {[%clk 0:00:43]} 34. Ba4+ {[%clk 0:01:28]}  Kf8 {[%clk 0:00:43]} 35. Bb3 {[%clk 0:01:23]} 1-0


[Site "https://www.chess.com"]

[Event "Titled Tuesday Blitz March 01 Early 2022"]
[White "Stefanov, Plamen"]
[Black "Devaev, Alexander"]
[WhiteFideId "2900980"]
[BlackFideId "4169395"]
[WhiteElo "2137"]
[BlackElo "2185"]
[Result "0-1"]
[Round "08"]
[TimeControl "180+1"]
[Date "2022.03.01"]
[WhiteClock "0:01:11"]
[BlackClock "0:02:12"]

1. e4 {[%clk 0:03:00]}  c6 {[%clk 0:02:58]} 2. d4 {[%clk 0:03:00]}  d5 {[%clk 0:02:59]} 3. e5 {[%clk 0:03:00]}  Bf5 {[%clk 0:02:59]} 4. Nf3 {[%clk 0:02:59]}  e6 {[%clk 0:02:59]} 5. Be2 {[%clk 0:02:55]}  Nd7 {[%clk 0:02:59]} 6. h3 {[%clk 0:02:55]}  h6 {[%clk 0:02:58]} 7. g4 {[%clk 0:02:51]}  Bh7 {[%clk 0:02:53]} 8. O-O {[%clk 0:02:51]}  Ne7 {[%clk 0:02:54]} 9. Bd3 {[%clk 0:02:48]}  Bxd3 {[%clk 0:02:52]} 10. Qxd3 {[%clk 0:02:48]}  c5 {[%clk 0:02:53]} 11. c3 {[%clk 0:02:47]}  Qb6 {[%clk 0:02:53]} 12. Nbd2 {[%clk 0:02:45]}  h5 {[%clk 0:02:51]} 13. Qe3 {[%clk 0:02:40]}  hxg4 {[%clk 0:02:48]} 14. hxg4 {[%clk 0:02:40]}  Ng6 {[%clk 0:02:42]} 15. Nb3 {[%clk 0:02:34]}  Be7 {[%clk 0:02:36]} 16. Kg2 {[%clk 0:02:28]}  O-O-O {[%clk 0:02:34]} 17. Bd2 {[%clk 0:02:07]}  Nh4+ {[%clk 0:02:22]} 18. Nxh4 {[%clk 0:02:06]}  Rxh4 {[%clk 0:02:23]} 19. Qg3 {[%clk 0:02:04]}  Rdh8 {[%clk 0:02:23]} 20. Rh1 {[%clk 0:02:04]}  c4 {[%clk 0:02:20]} 21. Rxh4 {[%clk 0:01:59]}  Bxh4 {[%clk 0:02:20]} 22. Rh1 {[%clk 0:01:49]}  Bxg3 {[%clk 0:02:14]} 23. Rxh8+ {[%clk 0:01:48]}  Kc7 {[%clk 0:02:15]} 24. Nc5 {[%clk 0:01:44]}  Nxc5 {[%clk 0:02:13]} 25. dxc5 {[%clk 0:01:43]}  Qxb2 {[%clk 0:02:14]} 26. Be3 {[%clk 0:01:37]}  Bxe5 {[%clk 0:02:13]} 27. Rf8 {[%clk 0:01:27]}  Qxc3 {[%clk 0:02:13]} 28. Rxf7+ {[%clk 0:01:26]}  Kc6 {[%clk 0:02:14]} 29. Re7 {[%clk 0:01:11]}  d4 {[%clk 0:02:13]} 30. Rxe6+ {[%clk 0:01:11]}  Kd5 {[%clk 0:02:12]} 0-1


[Site "https://www.chess.com"]

[Event "Titled Tuesday Blitz March 01 Early 2022"]
[White "Stepanencu, Nicodim-Cosmin"]
[Black "Hoffmann, Asa"]
[WhiteFideId "1256220"]
[BlackFideId "2001470"]
[WhiteElo "1809"]
[BlackElo "2117"]
[Result "0-1"]
[Round "08"]
[TimeControl "180+1"]
[Date "2022.03.01"]
[WhiteClock "0:00:01"]
[BlackClock "0:00:27"]

1. c4 {[%clk 0:03:00]}  Nf6 {[%clk 0:02:57]} 2. Nc3 {[%clk 0:02:50]}  d6 {[%clk 0:02:57]} 3. b3 {[%clk 0:02:49]}  e5 {[%clk 0:02:56]} 4. Bb2 {[%clk 0:02:41]}  Be7 {[%clk 0:02:55]} 5. d4 {[%clk 0:02:40]}  exd4 {[%clk 0:02:49]} 6. Qxd4 {[%clk 0:02:41]}  Nc6 {[%clk 0:02:48]} 7. Qd2 {[%clk 0:02:37]}  Bf5 {[%clk 0:02:47]} 8. f3 {[%clk 0:02:23]}  O-O {[%clk 0:02:46]} 9. e4 {[%clk 0:02:14]}  Bg6 {[%clk 0:02:45]} 10. Nge2 {[%clk 0:02:08]}  a5 {[%clk 0:02:42]} 11. Nf4 {[%clk 0:02:00]}  Nd7 {[%clk 0:02:37]} 12. Ncd5 {[%clk 0:01:54]}  Bg5 {[%clk 0:02:36]} 13. Qc3 {[%clk 0:01:45]}  Nde5 {[%clk 0:02:33]} 14. Nxg6 {[%clk 0:01:43]}  fxg6 {[%clk 0:02:18]} 15. Be2 {[%clk 0:01:42]}  Ne7 {[%clk 0:02:03]} 16. Rd1 {[%clk 0:01:39]}  Nxd5 {[%clk 0:02:03]} 17. Rxd5 {[%clk 0:01:40]}  b6 {[%clk 0:01:53]} 18. O-O {[%clk 0:01:39]}  Qe7 {[%clk 0:01:53]} 19. g3 {[%clk 0:01:30]}  Bf6 {[%clk 0:01:49]} 20. Qd2 {[%clk 0:01:27]}  Nd7 {[%clk 0:01:49]} 21. Ba3 {[%clk 0:01:21]}  Rae8 {[%clk 0:01:43]} 22. Bd1 {[%clk 0:01:17]}  Nc5 {[%clk 0:01:36]} 23. Bc2 {[%clk 0:01:15]}  g5 {[%clk 0:01:33]} 24. Re1 {[%clk 0:01:11]}  Be5 {[%clk 0:01:31]} 25. Kg2 {[%clk 0:01:10]}  Rf7 {[%clk 0:01:25]} 26. Rf1 {[%clk 0:00:58]}  Ref8 {[%clk 0:01:24]} 27. Bd1 {[%clk 0:00:33]}  Qf6 {[%clk 0:01:20]} 28. Bc1 {[%clk 0:00:26]}  h6 {[%clk 0:01:18]} 29. Qe3 {[%clk 0:00:23]}  Ne6 {[%clk 0:01:16]} 30. Bd2 {[%clk 0:00:19]}  c5 {[%clk 0:01:15]} 31. Qd3 {[%clk 0:00:17]}  Bd4 {[%clk 0:01:13]} 32. Kh1 {[%clk 0:00:12]}  Qg6 {[%clk 0:01:09]} 33. Bc2 {[%clk 0:00:11]}  Nc7 {[%clk 0:00:58]} 34. Rf5 {[%clk 0:00:11]}  Rxf5 {[%clk 0:00:57]} 35. exf5 {[%clk 0:00:12]}  Qf6 {[%clk 0:00:56]} 36. f4 {[%clk 0:00:12]}  g4 {[%clk 0:00:54]} 37. Qe2 {[%clk 0:00:11]}  Re8 {[%clk 0:00:53]} 38. Qxg4 {[%clk 0:00:11]}  d5 {[%clk 0:00:52]} 39. Bd3 {[%clk 0:00:07]}  Kh8 {[%clk 0:00:47]} 40. Re1 {[%clk 0:00:04]}  Rd8 {[%clk 0:00:46]} 41. Qg6 {[%clk 0:00:02]}  dxc4 {[%clk 0:00:45]} 42. Bxc4 {[%clk 0:00:02]}  b5 {[%clk 0:00:39]} 43. Bxb5 {[%clk 0:00:01]}  Qxg6 {[%clk 0:00:35]} 44. Bxa5 {[%clk 0:00:02]}  Qd6 {[%clk 0:00:31]} 45. Bc4 {[%clk 0:00:02]}  Re8 {[%clk 0:00:29]} 46. Rd1 {[%clk 0:00:01]}  Re7 {[%clk 0:00:27]} 47. a4 {[%clk 0:00:01]}  Qc6+ {[%clk 0:00:27]} 0-1


[Site "https://www.chess.com"]

[Event "Titled Tuesday Blitz March 01 Early 2022"]
[White "Suleymanli, Aydin"]
[Black "Petrova, Irina"]
[WhiteFideId "13413937"]
[BlackFideId "14124122"]
[WhiteElo "2529"]
[BlackElo "1988"]
[Result "1-0"]
[Round "08"]
[TimeControl "180+1"]
[Date "2022.03.01"]
[WhiteClock "0:00:21"]
[BlackClock "0:00:11"]

1. e4 {[%clk 0:03:00]}  d6 {[%clk 0:02:59]} 2. Nf3 {[%clk 0:03:00]}  Nf6 {[%clk 0:02:59]} 3. Nc3 {[%clk 0:02:58]}  e5 {[%clk 0:02:59]} 4. d4 {[%clk 0:02:58]}  exd4 {[%clk 0:02:57]} 5. Nxd4 {[%clk 0:02:57]}  Be7 {[%clk 0:02:56]} 6. Be2 {[%clk 0:02:54]}  O-O {[%clk 0:02:55]} 7. g4 {[%clk 0:02:53]}  Re8 {[%clk 0:02:48]} 8. g5 {[%clk 0:02:52]}  Nfd7 {[%clk 0:02:48]} 9. h4 {[%clk 0:02:52]}  Bf8 {[%clk 0:02:46]} 10. Be3 {[%clk 0:02:44]}  Nc6 {[%clk 0:02:44]} 11. Qd2 {[%clk 0:02:43]}  Nxd4 {[%clk 0:02:28]} 12. Qxd4 {[%clk 0:02:38]}  c5 {[%clk 0:02:13]} 13. Qd2 {[%clk 0:02:35]}  Ne5 {[%clk 0:02:09]} 14. O-O-O {[%clk 0:02:32]}  Bg4 {[%clk 0:01:54]} 15. f4 {[%clk 0:02:31]}  Bxe2 {[%clk 0:01:53]} 16. Qxe2 {[%clk 0:02:30]}  Nd7 {[%clk 0:01:50]} 17. h5 {[%clk 0:02:25]}  b5 {[%clk 0:01:43]} 18. Qxb5 {[%clk 0:02:13]}  Rb8 {[%clk 0:01:43]} 19. Qa6 {[%clk 0:02:13]}  Rb6 {[%clk 0:01:30]} 20. Qa3 {[%clk 0:02:07]}  Qc8 {[%clk 0:01:20]} 21. g6 {[%clk 0:01:39]}  fxg6 {[%clk 0:01:11]} 22. hxg6 {[%clk 0:01:38]}  h6 {[%clk 0:01:12]} 23. Nd5 {[%clk 0:01:27]}  Ra6 {[%clk 0:01:11]} 24. Qc3 {[%clk 0:01:03]}  Rxe4 {[%clk 0:01:04]} 25. Qd3 {[%clk 0:01:02]}  Re8 {[%clk 0:00:55]} 26. Qf5 {[%clk 0:00:58]}  Nf6 {[%clk 0:00:38]} 27. Nxf6+ {[%clk 0:00:54]}  gxf6 {[%clk 0:00:39]} 28. Qxc8 {[%clk 0:00:26]}  Rxc8 {[%clk 0:00:40]} 29. f5 {[%clk 0:00:26]}  Rxa2 {[%clk 0:00:39]} 30. Kb1 {[%clk 0:00:26]}  Ra4 {[%clk 0:00:38]} 31. Bxh6 {[%clk 0:00:26]}  Bxh6 {[%clk 0:00:33]} 32. Rxh6 {[%clk 0:00:27]}  Rf4 {[%clk 0:00:10]} 33. Rdh1 {[%clk 0:00:26]}  Rxf5 {[%clk 0:00:11]} 34. Rh8+ {[%clk 0:00:26]}  Kg7 {[%clk 0:00:11]} 35. Rxc8 {[%clk 0:00:26]}  Kxg6 {[%clk 0:00:12]} 36. Rhh8 {[%clk 0:00:23]}  Rf1+ {[%clk 0:00:11]} 37. Ka2 {[%clk 0:00:23]}  Kf5 {[%clk 0:00:11]} 38. Rhf8 {[%clk 0:00:21]} 1-0


[Site "https://www.chess.com"]

[Event "Titled Tuesday Blitz March 01 Early 2022"]
[White "Thorhallsson, Simon"]
[Black "Politov, Pavel Y."]
[WhiteFideId "2310090"]
[BlackFideId "24110515"]
[WhiteElo "2137"]
[BlackElo "2090"]
[Result "1-0"]
[Round "08"]
[TimeControl "180+1"]
[Date "2022.03.01"]
[WhiteClock "0:01:28"]
[BlackClock "0:00:22"]

1. e4 {[%clk 0:02:59]}  c5 {[%clk 0:02:59]} 2. Nf3 {[%clk 0:02:58]}  d6 {[%clk 0:02:58]} 3. d4 {[%clk 0:02:59]}  cxd4 {[%clk 0:02:59]} 4. Nxd4 {[%clk 0:03:00]}  Nf6 {[%clk 0:03:00]} 5. Nc3 {[%clk 0:03:00]}  a6 {[%clk 0:03:01]} 6. Be2 {[%clk 0:02:59]}  e5 {[%clk 0:02:58]} 7. Nb3 {[%clk 0:03:00]}  Be7 {[%clk 0:02:58]} 8. Bg5 {[%clk 0:03:00]}  Be6 {[%clk 0:02:52]} 9. Bxf6 {[%clk 0:02:59]}  Bxf6 {[%clk 0:02:52]} 10. Qd3 {[%clk 0:02:58]}  b5 {[%clk 0:02:32]} 11. O-O-O {[%clk 0:02:54]}  Be7 {[%clk 0:02:29]} 12. Nd5 {[%clk 0:02:53]}  Bxd5 {[%clk 0:02:27]} 13. Qxd5 {[%clk 0:02:54]}  Nd7 {[%clk 0:02:25]} 14. Na5 {[%clk 0:02:42]}  Nb6 {[%clk 0:02:20]} 15. Qc6+ {[%clk 0:02:40]}  Nd7 {[%clk 0:02:12]} 16. Nb7 {[%clk 0:02:39]}  Qb6 {[%clk 0:02:11]} 17. Nxd6+ {[%clk 0:02:37]}  Bxd6 {[%clk 0:02:08]} 18. Qxa8+ {[%clk 0:02:36]}  Qb8 {[%clk 0:02:03]} 19. Qc6 {[%clk 0:02:30]}  Ke7 {[%clk 0:01:55]} 20. Bg4 {[%clk 0:02:24]}  Nf6 {[%clk 0:01:43]} 21. Rxd6 {[%clk 0:02:07]}  Qxd6 {[%clk 0:01:42]} 22. Qb7+ {[%clk 0:02:07]}  Ke8 {[%clk 0:01:23]} 23. Rd1 {[%clk 0:02:06]}  Qc5 {[%clk 0:01:11]} 24. Rd7 {[%clk 0:01:42]}  Nxg4 {[%clk 0:00:44]} 25. Rc7 {[%clk 0:01:42]}  Qxc7 {[%clk 0:00:33]} 26. Qxc7 {[%clk 0:01:42]}  Rf8 {[%clk 0:00:26]} 27. Qc8+ {[%clk 0:01:40]}  Ke7 {[%clk 0:00:26]} 28. Qxg4 {[%clk 0:01:41]}  g6 {[%clk 0:00:25]} 29. Qg3 {[%clk 0:01:36]}  Ke6 {[%clk 0:00:24]} 30. Qc3 {[%clk 0:01:32]}  Rd8 {[%clk 0:00:24]} 31. a4 {[%clk 0:01:28]}  bxa4 {[%clk 0:00:22]} 32. Qc4+ {[%clk 0:01:28]} 1-0


[Site "https://www.chess.com"]

[Event "Titled Tuesday Blitz March 01 Early 2022"]
[White "Tsvetkov, Andrey"]
[Black "Ahmadzada, Ahmad"]
[WhiteFideId "34139360"]
[BlackFideId "13413007"]
[WhiteElo "2280"]
[BlackElo "2228"]
[Result "0-1"]
[Round "08"]
[TimeControl "180+1"]
[Date "2022.03.01"]
[WhiteClock "0:00:01"]
[BlackClock "0:00:20"]

1. d4 {[%clk 0:03:00]}  Nf6 {[%clk 0:03:00]} 2. c4 {[%clk 0:03:00]}  e6 {[%clk 0:03:01]} 3. Nc3 {[%clk 0:03:01]}  Nc6 {[%clk 0:03:01]} 4. e4 {[%clk 0:02:58]}  Bb4 {[%clk 0:03:01]} 5. d5 {[%clk 0:02:49]}  exd5 {[%clk 0:02:45]} 6. cxd5 {[%clk 0:02:45]}  Ne5 {[%clk 0:02:27]} 7. f4 {[%clk 0:02:31]}  Nxe4 {[%clk 0:01:57]} 8. fxe5 {[%clk 0:02:30]}  Nxc3 {[%clk 0:01:27]} 9. bxc3 {[%clk 0:02:31]}  Bxc3+ {[%clk 0:01:25]} 10. Bd2 {[%clk 0:02:25]}  Qh4+ {[%clk 0:01:25]} 11. Ke2 {[%clk 0:01:56]}  Qe4+ {[%clk 0:01:15]} 12. Be3 {[%clk 0:01:55]}  Bxa1 {[%clk 0:01:11]} 13. Qxa1 {[%clk 0:01:54]}  Qxd5 {[%clk 0:01:11]} 14. Nf3 {[%clk 0:01:45]}  O-O {[%clk 0:01:10]} 15. Kf2 {[%clk 0:01:40]}  d6 {[%clk 0:01:10]} 16. exd6 {[%clk 0:01:38]}  Qxd6 {[%clk 0:01:11]} 17. Qc3 {[%clk 0:01:35]}  Be6 {[%clk 0:01:09]} 18. Bc5 {[%clk 0:01:26]}  Qc6 {[%clk 0:00:59]} 19. Nd4 {[%clk 0:01:24]}  Qd5 {[%clk 0:00:56]} 20. Bxf8 {[%clk 0:01:20]}  Qxa2+ {[%clk 0:00:55]} 21. Be2 {[%clk 0:01:18]}  Rxf8 {[%clk 0:00:56]} 22. Ra1 {[%clk 0:01:18]}  Qd5 {[%clk 0:00:53]} 23. Nxe6 {[%clk 0:01:17]}  Qxe6 {[%clk 0:00:49]} 24. Rxa7 {[%clk 0:01:14]}  Re8 {[%clk 0:00:46]} 25. Rxb7 {[%clk 0:00:03]}  Qxe2+ {[%clk 0:00:45]} 26. Kg1 {[%clk 0:00:04]}  Qd1+ {[%clk 0:00:43]} 27. Kf2 {[%clk 0:00:05]}  Re2+ {[%clk 0:00:29]} 28. Kg3 {[%clk 0:00:05]}  Qd6+ {[%clk 0:00:22]} 29. Kf3 {[%clk 0:00:05]}  Qd5+ {[%clk 0:00:19]} 30. Kxe2 {[%clk 0:00:02]}  Qxg2+ {[%clk 0:00:19]} 31. Ke3 {[%clk 0:00:01]}  Qxb7 {[%clk 0:00:20]} 32. Qe5 {[%clk 0:00:01]}  Qb6+ {[%clk 0:00:20]} 33. Kd3 {[%clk 0:00:01]}  Qd6+ {[%clk 0:00:20]} 0-1


[Site "https://www.chess.com"]

[Event "Titled Tuesday Blitz March 01 Early 2022"]
[White "Vokhidov, Shamsiddin"]
[Black "Matinian, Nikita"]
[WhiteFideId "14204223"]
[BlackFideId "24129100"]
[WhiteElo "2979"]
[BlackElo "2752"]
[Result "0-1"]
[Round "08"]
[TimeControl "180+1"]
[Date "2022.03.01"]
[WhiteClock "0:00:04"]
[BlackClock "0:00:07"]

1. e4 {[%clk 0:03:00]}  e5 {[%clk 0:03:00]} 2. Nf3 {[%clk 0:03:01]}  Nc6 {[%clk 0:03:01]} 3. Bb5 {[%clk 0:03:01]}  a6 {[%clk 0:03:01]} 4. Ba4 {[%clk 0:03:02]}  Nf6 {[%clk 0:03:02]} 5. O-O {[%clk 0:03:02]}  Be7 {[%clk 0:03:02]} 6. d3 {[%clk 0:03:03]}  b5 {[%clk 0:03:02]} 7. Bb3 {[%clk 0:03:03]}  d6 {[%clk 0:03:01]} 8. a3 {[%clk 0:03:03]}  Bg4 {[%clk 0:02:58]} 9. Be3 {[%clk 0:02:59]}  Nd4 {[%clk 0:02:52]} 10. Bxd4 {[%clk 0:02:56]}  exd4 {[%clk 0:02:53]} 11. Nbd2 {[%clk 0:02:55]}  c5 {[%clk 0:02:52]} 12. h3 {[%clk 0:02:52]}  Bh5 {[%clk 0:02:51]} 13. a4 {[%clk 0:02:49]}  b4 {[%clk 0:02:48]} 14. Re1 {[%clk 0:02:44]}  O-O {[%clk 0:02:44]} 15. Nf1 {[%clk 0:02:44]}  Nd7 {[%clk 0:02:35]} 16. Ng3 {[%clk 0:02:44]}  Bg6 {[%clk 0:02:36]} 17. a5 {[%clk 0:02:43]}  Bf6 {[%clk 0:02:32]} 18. Bd5 {[%clk 0:02:36]}  Ra7 {[%clk 0:02:32]} 19. Rf1 {[%clk 0:02:31]}  Ne5 {[%clk 0:02:18]} 20. Nd2 {[%clk 0:02:30]}  Bh4 {[%clk 0:02:18]} 21. Nf5 {[%clk 0:02:21]}  Bxf5 {[%clk 0:02:17]} 22. exf5 {[%clk 0:02:22]}  Kh8 {[%clk 0:02:02]} 23. Ne4 {[%clk 0:02:16]}  g6 {[%clk 0:01:59]} 24. f4 {[%clk 0:02:05]}  Nd7 {[%clk 0:01:48]} 25. fxg6 {[%clk 0:01:34]}  fxg6 {[%clk 0:01:45]} 26. Qg4 {[%clk 0:01:32]}  Nf6 {[%clk 0:01:39]} 27. Nxf6 {[%clk 0:01:15]}  Bxf6 {[%clk 0:01:40]} 28. Rae1 {[%clk 0:01:07]}  Re7 {[%clk 0:01:40]} 29. Re6 {[%clk 0:00:53]}  Rxe6 {[%clk 0:01:40]} 30. Bxe6 {[%clk 0:00:49]}  Re8 {[%clk 0:01:23]} 31. f5 {[%clk 0:00:41]}  Qe7 {[%clk 0:01:21]} 32. Kh1 {[%clk 0:00:30]}  gxf5 {[%clk 0:01:14]} 33. Bxf5 {[%clk 0:00:31]}  Rd8 {[%clk 0:01:02]} 34. Be6 {[%clk 0:00:22]}  Re8 {[%clk 0:00:56]} 35. Bc4 {[%clk 0:00:22]}  Qe5 {[%clk 0:00:52]} 36. Bxa6 {[%clk 0:00:20]}  d5 {[%clk 0:00:47]} 37. Bb7 {[%clk 0:00:21]}  Bd8 {[%clk 0:00:40]} 38. Qd7 {[%clk 0:00:18]}  Bc7 {[%clk 0:00:22]} 39. Kg1 {[%clk 0:00:06]}  Qh2+ {[%clk 0:00:19]} 40. Kf2 {[%clk 0:00:07]}  Qg3+ {[%clk 0:00:13]} 41. Kg1 {[%clk 0:00:07]}  Qh2+ {[%clk 0:00:09]} 42. Kf2 {[%clk 0:00:07]}  Rf8+ {[%clk 0:00:09]} 43. Ke1 {[%clk 0:00:08]}  Bg3+ {[%clk 0:00:07]} 44. Rf2 {[%clk 0:00:05]}  Qg1+ {[%clk 0:00:06]} 45. Ke2 {[%clk 0:00:05]}  Qxf2+ {[%clk 0:00:06]} 46. Kd1 {[%clk 0:00:04]}  Qe1# {[%clk 0:00:07]} 0-1


[Site "https://www.chess.com"]